fUST/lending_fUST_20250726
["ID","MTS","AMOUNT","RATE_DAILY","PERIOD"]
[375080485,1753521046902,-1004.99,0.00019726,2]
[375080487,1753521046912,-460.0,0.00019726,2]
[375080489,1753521046920,-460.0,0.00019726,2]
[375080491,1753521046931,-460.0,0.00019726,2]
[375080493,1753521046941,-590.67,0.00019726,2]
[375080495,1753521046951,-460.0,0.00019726,2]
[375080497,1753521046960,-460.0,0.00019726,2]
[375080499,1753521046971,-465.80960585,0.00019726,2]
[375080501,1753521046981,-460.0,0.00019726,2]
[375080503,1753521046990,-390.70756936,0.00019726,2]
[375080505,1753521046999,-500.0,0.00019726,2]
[375080507,1753521047009,-490.1,0.00019726,2]
[375080509,1753521047018,-460.0,0.00019726,2]
[375080511,1753521047027,-151.0,0.00019726,2]
[375080513,1753521047036,-151.0,0.00019726,2]
[375080515,1753521047046,-151.0,0.00019726,2]
[375080517,1753521047055,-1166.11,0.00019726,2]
[375080518,1753521047064,-460.0,0.00019726,2]
[375080520,1753521047073,-460.0,0.00019726,2]
[375080522,1753521047082,-460.0,0.00019726,2]
[375080524,1753521047091,-591.48669691,0.00019726,2]
[375080526,1753521047100,-1546.01,0.00019726,2]
[375080528,1753521047110,-460.0,0.00019726,2]
[375080530,1753521047119,-929.76,0.00019726,2]
[375080532,1753521047128,-151.31387012,0.00019726,2]
[375080534,1753521047138,-460.0,0.00019726,2]
[375080536,1753521047148,-466.52895291,0.00019726,2]
[375080538,1753521047157,-151.0,0.00019726,2]
[375080540,1753521047166,-151.0,0.00019726,2]
[375080542,1753521047175,-152.08575023,0.00019726,2]
[375080544,1753521047184,-152.402634,0.00019726,2]
[375080546,1753521047193,-460.0,0.00019726,2]
[375080548,1753521047202,-152.48276809,0.00019726,2]
[375080550,1753521047211,-460.0,0.00019726,2]
[375080552,1753521047219,-1670.13,0.00019726,2]
[375080554,1753521047229,-460.0,0.00019726,2]
[375080556,1753521047238,-460.0,0.00019726,2]
[375080557,1753521047247,-460.0,0.00019726,2]
[375080559,1753521047256,-3490.07,0.00019726,2]
[375080561,1753521047266,-460.0,0.00019726,2]
[375080563,1753521047275,-460.0,0.00019726,2]
[375080565,1753521047284,-467.56894109,0.00019726,2]
[375080567,1753521047293,-6039.12,0.00019726,2]
[375080569,1753521047304,-460.0,0.00019726,2]
[375080571,1753521047312,-460.0,0.00019726,2]
[375080573,1753521047322,-653.2,0.00019726,2]
[375080575,1753521047332,-460.0,0.00019726,2]
[375080577,1753521047341,-895.43,0.00019726,2]
[375080579,1753521047350,-7433.74,0.00019726,2]
[375080581,1753521047359,-460.0,0.00019726,2]
[375080583,1753521047368,-2748.12,0.00019726,2]
[375080585,1753521047377,-460.0,0.00019726,2]
[375080587,1753521047386,-460.0,0.00019726,2]
[375080589,1753521047395,-1142.76,0.00019726,2]
[375080591,1753521047405,-151.0,0.00019726,2]
[375080593,1753521047414,-1106.36,0.00019726,2]
[375080595,1753521047423,-576.14,0.00019726,2]
[375080597,1753521047433,-432.45527726,0.00019726,2]
[375080599,1753521047442,-397.38933981,0.00019726,2]
[375080601,1753521047450,-460.0,0.00019726,2]
[375080603,1753521047461,-846.87,0.00019726,2]
[375080605,1753521047470,-460.0,0.00019726,2]
[375080607,1753521047481,-3291.26,0.00019726,2]
[375080609,1753521047491,-460.0,0.00019726,2]
[375080611,1753521047501,-460.0,0.00019726,2]
[375080613,1753521047510,-579.61259138,0.00019726,2]
[375080615,1753521047520,-460.0,0.00019726,2]
[375080617,1753521047530,-460.0,0.00019726,2]
[375080619,1753521047539,-3222.68,0.00019726,2]
[375080621,1753521047548,-1011.25,0.00019726,2]
[375080623,1753521047558,-460.0,0.00019726,2]
[375080625,1753521047567,-460.0,0.00019726,2]
[375080627,1753521047577,-460.0,0.00019726,2]
[375080629,1753521047586,-613.33,0.00019726,2]
[375080631,1753521047597,-999.82,0.00019726,2]
[375080633,1753521047606,-460.0,0.00019726,2]
[375080635,1753521047615,-460.0,0.00019726,2]
[375080637,1753521047624,-4412.04,0.00019726,2]
[375080639,1753521047634,-460.0,0.00019726,2]
[375080641,1753521047644,-1039.09,0.00019726,2]
[375080643,1753521047653,-2349.84,0.00019726,2]
[375080645,1753521047663,-674.54,0.00019726,2]
[375080647,1753521047672,-1665.11,0.00019726,2]
[375080649,1753521047682,-624.29,0.00019726,2]
[375080651,1753521047691,-670.61,0.00019726,2]
[375080653,1753521047700,-460.0,0.00019726,2]
[375080655,1753521047709,-1990.0,0.00019726,2]
[375080657,1753521047718,-460.0,0.00019726,2]
[375080659,1753521047728,-460.0,0.00019726,2]
[375080661,1753521047737,-460.0,0.00019726,2]
[375080663,1753521047745,-3946.94,0.00019726,2]
[375080665,1753521047755,-460.0,0.00019726,2]
[375080666,1753521047764,-460.0,0.00019726,2]
[375080668,1753521047773,-460.0,0.00019726,2]
[375080670,1753521047782,-578.6035736,0.00019726,2]
[375080672,1753521047791,-152.35444116,0.00019726,2]
[375080674,1753521047801,-734.29,0.00019726,2]
[375080676,1753521047810,-460.0,0.00019726,2]
[375080678,1753521047819,-460.0,0.00019726,2]
[375080680,1753521047828,-460.0,0.00019726,2]
[375080682,1753521047837,-460.0,0.00019726,2]
[375080683,1753521047846,-460.0,0.00019726,2]
[375080685,1753521047855,-2594.64,0.00019726,2]
[375080687,1753521047864,-909.46,0.00019726,2]
[375080690,1753521047874,-1051.93,0.00019726,2]
[375080691,1753521047884,-460.0,0.00019726,2]
[375080693,1753521047894,-460.0,0.00019726,2]
[375080695,1753521047903,-3680.05,0.00019726,2]
[375080697,1753521047912,-791.18,0.00019726,2]
[375080699,1753521047922,-460.0,0.00019726,2]
[375080701,1753521047934,-460.0,0.00019726,2]
[375080703,1753521047943,-460.0,0.00019726,2]
[375080705,1753521047952,-1584.15,0.00019726,2]
[375080707,1753521047961,-460.0,0.00019726,2]
[375080709,1753521047970,-1118.75,0.00019726,2]
[375080711,1753521047981,-791.29,0.00019726,2]
[375080713,1753521047991,-805.1,0.00019726,2]
[375080715,1753521048000,-1187.05,0.00019726,2]
[375080717,1753521048010,-460.0,0.00019726,2]
[375080719,1753521048019,-822.72,0.00019726,2]
[375080721,1753521048029,-467.31220708,0.00019726,2]
[375080723,1753521048039,-531.59,0.00019726,2]
[375080725,1753521048048,-577.92,0.00019726,2]
[375080727,1753521048057,-3398.0,0.00019726,2]
[375080729,1753521048067,-460.0,0.00019726,2]
[375080731,1753521048076,-572.94459415,0.00019726,2]
[375080733,1753521048086,-939.52,0.00019726,2]
[375080735,1753521048095,-11518.32,0.00019726,2]
[375080737,1753521048104,-677.1,0.00019726,2]
[375080738,1753521048113,-562.2,0.00019726,2]
[375080740,1753521048124,-460.0,0.00019726,2]
[375080742,1753521048133,-512.55,0.00019726,2]
[375080744,1753521048143,-2340.29,0.00019726,2]
[375080746,1753521048153,-151.0,0.00019726,2]
[375080749,1753521048163,-151.0,0.00019726,2]
[375080750,1753521048172,-460.0,0.00019726,2]
[375080753,1753521048182,-693.92,0.00019726,2]
[375080755,1753521048192,-460.0,0.00019726,2]
[375080757,1753521048202,-202.27534398,0.00019726,2]
[375080759,1753521048212,-151.0,0.00019726,2]
[375080760,1753521048221,-460.0,0.00019726,2]
[375080762,1753521048232,-151.0,0.00019726,2]
[375080764,1753521048242,-500.0,0.00019773,2]
[375080766,1753521048252,-500.0,0.00019773,2]
[375080768,1753521048261,-500.0,0.00019773,2]
[375080770,1753521048271,-500.0,0.00019773,2]
[375080773,1753521048281,-369.0,0.00019825,2]
[375080774,1753521048290,-369.0,0.00019855,2]
[375080777,1753521048300,-317.257115,0.00019867,2]
[375080778,1753521048309,-369.0,0.00019885,2]
[375080780,1753521048319,-3000.0,0.000199,2]
[375080782,1753521048328,-151.0,0.000199,2]
[375080784,1753521048337,-3000.0,0.0001991,2]
[375080786,1753521048346,-3000.0,0.0001992,2]
[375080788,1753521048356,-151.0,0.0001992,2]
[375080790,1753521048366,-3000.0,0.0001993,2]
[375080792,1753521048376,-5665.588832,0.0001994,2]
[375080795,1753521048389,-604.332,0.0001994,2]
[375080796,1753521048398,-249.206,0.00019968,2]
[375080798,1753521048407,-204.231,0.00019968,2]
[375080800,1753521048417,-150.334,0.00019968,2]
[375080802,1753521048426,-150.0,0.00019968,2]
[375080804,1753521048436,-151.137,0.00019968,2]
[375080806,1753521048446,-648.0,0.00019968,2]
[375080808,1753521048455,-2157.0,0.00019968,2]
[375080810,1753521048464,-969.0,0.00019968,2]
[375080812,1753521048474,-421.487,0.00019968,2]
[375080814,1753521048483,-500.0,0.00019973,2]
[375080816,1753521048493,-274.68370452,0.00019973,2]
[375080818,1753521048502,-233.46432429,0.00019973,2]
[375080820,1753521048512,-167.39014,0.0001999,2]
[375080822,1753521048522,-151.0,0.0002,2]
[375080824,1753521048532,-151.0,0.0002,2]
[375080826,1753521048542,-151.0,0.0002,2]
[375080828,1753521048552,-151.0,0.0002,2]
[375080829,1753521048562,-152.98419751,0.0002,2]
[375080830,1753521048574,-151.0,0.0002,2]
[375080831,1753521048584,-151.28167398,0.0002,2]
[375080832,1753521048593,-151.00525167,0.0002,2]
[375080833,1753521048604,-151.0,0.0002,2]
[375080834,1753521048614,-300.48934009,0.0002,2]
[375080835,1753521048624,-151.0,0.0002,2]
[375080836,1753521048633,-596.0,0.0002,2]
[375080844,1753521048729,-151.0,0.0002,2]
[375080846,1753521048741,-151.92336044,0.0002,2]
[375080848,1753521048750,-151.0,0.0002,2]
[375080850,1753521048760,-151.0,0.0002,2]
[375080852,1753521048770,-151.0,0.0002,2]
[375080854,1753521048780,-151.0,0.0002,2]
[375080856,1753521048790,-644.0,0.0002,2]
[375080858,1753521048799,-151.0,0.0002,2]
[375080860,1753521048808,-151.0,0.0002,2]
[375080862,1753521048818,-151.0,0.0002,2]
[375080864,1753521048828,-151.0,0.0002,2]
[375080866,1753521048838,-151.0,0.0002,2]
[375080868,1753521048848,-266.743077,0.0002,2]
[375080870,1753521048857,-151.0,0.0002,2]
[375080872,1753521048867,-151.0,0.0002,2]
[375080874,1753521048876,-151.0,0.0002,2]
[375080876,1753521048885,-460.0,0.0002,2]
[375080878,1753521048895,-161.595943,0.0002,2]
[375080880,1753521048905,-161.595943,0.0002,2]
[375080882,1753521048914,-460.0,0.0002,2]
[375080884,1753521048924,-151.0,0.0002,2]
[375080886,1753521048935,-151.0,0.0002,2]
[375080888,1753521048947,-151.0,0.0002,2]
[375080890,1753521048956,-460.0,0.0002,2]
[375080892,1753521048965,-152.283671,0.0002,2]
[375080893,1753521048975,-151.0,0.0002,2]
[375080896,1753521048984,-594.16,0.0002,2]
[375080898,1753521048994,-151.0,0.0002,2]
[375080899,1753521049003,-299.185893,0.0002,2]
[375080901,1753521049012,-151.0,0.0002,2]
[375080903,1753521049022,-151.0,0.0002,2]
[375080905,1753521049032,-460.0,0.0002,2]
[375080907,1753521049042,-460.0,0.0002,2]
[375080909,1753521049051,-460.0,0.0002,2]
[375080911,1753521049061,-737.58,0.0002,2]
[375080913,1753521049070,-460.0,0.0002,2]
[375080915,1753521049080,-460.0,0.0002,2]
[375080917,1753521049089,-485.40378814,0.0002,2]
[375080919,1753521049099,-460.0,0.0002,2]
[375080921,1753521049109,-760.947282,0.0002,2]
[375080923,1753521049118,-760.947282,0.0002,2]
[375080925,1753521049127,-177.084194,0.0002,2]
[375080927,1753521049137,-177.084194,0.0002,2]
[375080929,1753521049146,-177.084194,0.0002,2]
[375080931,1753521049156,-177.084194,0.0002,2]
[375080933,1753521049165,-471.79738491,0.0002,2]
[375080935,1753521049174,-151.0,0.0002,2]
[375080937,1753521049184,-151.0,0.0002,2]
[375080939,1753521049194,-204.805823,0.0002,2]
[375080942,1753521049207,-460.0,0.0002,2]
[375080944,1753521049217,-460.0,0.0002,2]
[375080946,1753521049227,-460.0,0.0002,2]
[375080948,1753521049236,-460.0,0.0002,2]
[375080950,1753521049245,-151.0,0.0002,2]
[375080952,1753521049254,-261.429778,0.0002,2]
[375080954,1753521049263,-460.0,0.0002,2]
[375080956,1753521049272,-460.0,0.0002,2]
[375080958,1753521049285,-460.0,0.0002,2]
[375080960,1753521049294,-620.25,0.0002,2]
[375080962,1753521049303,-460.0,0.0002,2]
[375080964,1753521049312,-151.0,0.0002,2]
[375080966,1753521049321,-151.0,0.0002,2]
[375080968,1753521049330,-460.0,0.0002,2]
[375080970,1753521049339,-460.0,0.0002,2]
[375080972,1753521049348,-460.0,0.0002,2]
[375080974,1753521049357,-696.51,0.0002,2]
[375080976,1753521049366,-460.0,0.0002,2]
[375080977,1753521049375,-661.68,0.0002,2]
[375080979,1753521049385,-460.0,0.0002,2]
[375080981,1753521049395,-460.0,0.0002,2]
[375080983,1753521049404,-460.0,0.0002,2]
[375080985,1753521049413,-460.0,0.0002,2]
[375080987,1753521049423,-460.0,0.0002,2]
[375080989,1753521049433,-460.0,0.0002,2]
[375080991,1753521049442,-151.0,0.0002,2]
[375080994,1753521049452,-582.45,0.0002,2]
[375080996,1753521049461,-460.0,0.0002,2]
[375080998,1753521049471,-1010.11,0.0002,2]
[375081000,1753521049483,-1151.17,0.0002,2]
[375081002,1753521049492,-511.73837375,0.0002,2]
[375081004,1753521049501,-460.0,0.0002,2]
[375081006,1753521049510,-460.0,0.0002,2]
[375081008,1753521049519,-460.0,0.0002,2]
[375081010,1753521049528,-460.0,0.0002,2]
[375081012,1753521049538,-653.71,0.0002,2]
[375081014,1753521049546,-460.0,0.0002,2]
[375081016,1753521049555,-460.0,0.0002,2]
[375081018,1753521049564,-460.0,0.0002,2]
[375081020,1753521049573,-1004.99,0.0002,2]
[375081022,1753521049583,-573.43251099,0.0002,2]
[375081024,1753521049592,-460.0,0.0002,2]
[375081026,1753521049602,-460.0,0.0002,2]
[375081028,1753521049611,-460.0,0.0002,2]
[375081030,1753521049620,-460.0,0.0002,2]
[375081032,1753521049630,-460.0,0.0002,2]
[375081034,1753521049639,-490.1,0.0002,2]
[375081036,1753521049649,-460.0,0.0002,2]
[375081038,1753521049658,-1166.11,0.0002,2]
[375081040,1753521049667,-460.0,0.0002,2]
[375081042,1753521049676,-460.0,0.0002,2]
[375081044,1753521049686,-460.0,0.0002,2]
[375081046,1753521049695,-1546.01,0.0002,2]
[375081048,1753521049705,-464.88709639,0.0002,2]
[375081050,1753521049714,-929.76,0.0002,2]
[375081052,1753521049723,-460.0,0.0002,2]
[375081054,1753521049733,-460.0,0.0002,2]
[375081056,1753521049742,-1670.13,0.0002,2]
[375081057,1753521049752,-460.0,0.0002,2]
[375081059,1753521049761,-460.0,0.0002,2]
[375081061,1753521049770,-460.0,0.0002,2]
[375081063,1753521049779,-595.31025794,0.0002,2]
[375081084,1753521049961,-1163.37573124,0.0002,2]
[375081086,1753521049972,-1731.38401082,0.0002,2]
[375081088,1753521049982,-460.0,0.0002,2]
[375081090,1753521049992,-460.0,0.0002,2]
[375081092,1753521050001,-4600.4704369,0.0002,2]
[375081105,1753521050109,-151.0,0.00019726,2]
[375081107,1753521050118,-151.0,0.00019726,2]
[375081109,1753521050127,-151.0,0.0002,2]
[375081111,1753521050135,-151.0,0.0002,2]
[375081113,1753521050144,-139.32000003,0.0002,2]
[375081177,1753521050742,-460.0,0.00019178,2]
[375081178,1753521050751,-460.19531222,0.00019178,2]
[375081180,1753521050760,-460.96981304,0.00019178,2]
[375081183,1753521050771,-460.0,0.00019452,2]
[375081185,1753521050780,-460.0,0.00019726,2]
[375081187,1753521050789,-524.0,0.00019726,2]
[375081189,1753521050798,-524.0,0.0002,2]
[375081191,1753521050807,-1299.32956307,0.0002,2]
[375081193,1753521050817,-460.0,0.0002,2]
[375081195,1753521050826,-460.0,0.0002,2]
[375081197,1753521050835,-460.0,0.0002,2]
[375081199,1753521050844,-653.2,0.0002,2]
[375081201,1753521050854,-7433.74,0.0002,2]
[375081203,1753521050863,-460.0,0.0002,2]
[375081205,1753521050872,-2748.12,0.0002,2]
[375081207,1753521050882,-460.0,0.0002,2]
[375081209,1753521050891,-460.0,0.0002,2]
[375081211,1753521050900,-1142.76,0.0002,2]
[375081213,1753521050909,-151.0,0.0002,2]
[375081215,1753521050918,-151.0,0.0002,2]
[375081217,1753521050928,-1106.36,0.0002,2]
[375081219,1753521050943,-576.14,0.0002,2]
[375081221,1753521050952,-460.0,0.0002,2]
[375081223,1753521050961,-846.87,0.0002,2]
[375081224,1753521050970,-460.0,0.0002,2]
[375081227,1753521050982,-3291.26,0.0002,2]
[375081229,1753521050991,-460.0,0.0002,2]
[375081231,1753521051001,-460.0,0.0002,2]
[375081233,1753521051011,-460.0,0.0002,2]
[375081235,1753521051021,-460.0,0.0002,2]
[375081237,1753521051030,-3222.68,0.0002,2]
[375081238,1753521051039,-1011.25,0.0002,2]
[375081241,1753521051050,-397.57567652,0.0002,2]
[375081243,1753521051059,-460.0,0.0002,2]
[375081245,1753521051068,-460.0,0.0002,2]
[375081247,1753521051078,-613.33,0.0002,2]
[375081249,1753521051087,-999.82,0.0002,2]
[375081251,1753521051097,-460.0,0.0002,2]
[375081253,1753521051106,-460.0,0.0002,2]
[375081255,1753521051115,-4412.04,0.0002,2]
[375081257,1753521051125,-460.0,0.0002,2]
[375081259,1753521051136,-1039.09,0.0002,2]
[375081261,1753521051146,-2349.84,0.0002,2]
[375081263,1753521051156,-674.54,0.0002,2]
[375081265,1753521051165,-1665.11,0.0002,2]
[375081267,1753521051175,-624.29,0.0002,2]
[375081269,1753521051184,-670.61,0.0002,2]
[375081271,1753521051193,-460.0,0.0002,2]
[375081273,1753521051202,-1990.0,0.0002,2]
[375081275,1753521051211,-460.0,0.0002,2]
[375081277,1753521051221,-460.0,0.0002,2]
[375081279,1753521051231,-460.0,0.0002,2]
[375081281,1753521051240,-3946.94,0.0002,2]
[375081283,1753521051250,-460.0,0.0002,2]
[375081285,1753521051260,-460.0,0.0002,2]
[375081287,1753521051269,-734.29,0.0002,2]
[375081289,1753521051281,-460.0,0.0002,2]
[375081291,1753521051291,-460.0,0.0002,2]
[375081293,1753521051299,-460.0,0.0002,2]
[375081295,1753521051309,-460.0,0.0002,2]
[375081297,1753521051318,-460.0,0.0002,2]
[375081299,1753521051327,-2594.64,0.0002,2]
[375081301,1753521051338,-909.46,0.0002,2]
[375081303,1753521051347,-727.55983583,0.0002,2]
[375081305,1753521051360,-324.37016417,0.0002,2]
[375081307,1753521051370,-460.0,0.0002,2]
[375081309,1753521051379,-460.0,0.0002,2]
[375081311,1753521051388,-3680.05,0.0002,2]
[375081313,1753521051397,-791.18,0.0002,2]
[375081315,1753521051406,-460.0,0.0002,2]
[375081317,1753521051415,-465.9007739,0.0002,2]
[375081319,1753521051424,-460.0,0.0002,2]
[375081321,1753521051433,-90.71983305,0.0002,2]
[375081403,1753521052210,-1493.43016695,0.0002,2]
[375081405,1753521052219,-460.0,0.0002,2]
[375081407,1753521052229,-1118.75,0.0002,2]
[375081409,1753521052238,-791.29,0.0002,2]
[375081411,1753521052247,-805.1,0.0002,2]
[375081413,1753521052256,-1187.05,0.0002,2]
[375081415,1753521052265,-460.0,0.0002,2]
[375081417,1753521052274,-822.72,0.0002,2]
[375081419,1753521052283,-531.59,0.0002,2]
[375081421,1753521052293,-577.92,0.0002,2]
[375081423,1753521052302,-3398.0,0.0002,2]
[375081425,1753521052311,-460.0,0.0002,2]
[375081427,1753521052320,-939.52,0.0002,2]
[375081429,1753521052330,-1086.53166538,0.0002,2]
[375083598,1753521213969,204.580026,0.00013699,2]
[375083612,1753521732973,616.72190893,0.00023,30]
[375083613,1753521783721,-628.78114379,0.00025924,30]
[375083614,1753521783745,-244.72978403,0.00025924,30]
[375083615,1753521783769,-300.0,0.00025924,30]
[375083616,1753521783794,-30945.5,0.00025924,60]
[375083617,1753521783818,-190.0,0.00025924,30]
[375083618,1753521783844,-191.0,0.00025924,60]
[375083619,1753521783870,-8784.83,0.00025924,60]
[375083620,1753521783895,-16229.45,0.00025924,60]
[375083621,1753521783920,-285.0,0.00025924,60]
[375083622,1753521783945,-896.83689553,0.00025924,32]
[375083623,1753521783968,-1044.62876046,0.00025924,60]
[375083624,1753521783992,-1943.93147132,0.00025924,30]
[375083625,1753521784015,-17798.166982,0.00025924,35]
[375083626,1753521784041,-1316.29404557,0.00025924,51]
[375083627,1753521792089,-10000.0,0.00024,30]
[375083628,1753521792114,-349.86733466,0.00024027,30]
[375083629,1753521792148,-290027.41005764,0.000246,30]
[375083630,1753521792184,-151.26975905,0.00025,30]
[375083631,1753521792231,-231.25662632,0.00025,30]
[375083632,1753521792278,-160.0,0.00025,30]
[375083633,1753521792303,-160.0,0.00025,30]
[375083634,1753521792328,-160.0,0.00025,30]
[375083635,1753521792351,-12629.83479014,0.00025,30]
[375083636,1753521792375,-476.98041219,0.00025,30]
[375083637,1753521792398,-214.8008262,0.00025,30]
[375083638,1753521792420,-526.41699184,0.00025,30]
[375083639,1753521792443,-312.16666667,0.00025,30]
[375083640,1753521792470,-246.0,0.000254,30]
[375083641,1753521792498,-502.05,0.000258,30]
[375083642,1753521792526,-500.0,0.00026027,30]
[375083643,1753521792548,-246.0,0.000261,60]
[375083644,1753521792572,-200.0,0.000265,120]
[375083645,1753521792596,-247.0,0.000268,90]
[375083646,1753521792620,-175.99711083,0.00027,60]
[375083647,1753521792642,-3003.41513957,0.00027,120]
[375083648,1753521792666,-200.0,0.00027,120]
[375083649,1753521792690,-200.0,0.00027227,30]
[375083650,1753521792713,-200.0,0.00027227,30]
[375083651,1753521792736,-151.59714103,0.00027397,120]
[375083652,1753521792759,-500.0,0.00027397,120]
[375083653,1753521792782,-500.0,0.00027397,120]
[375083654,1753521792805,-500.0,0.00027397,120]
[375083655,1753521792827,-500.0,0.00027397,120]
[375083656,1753521792850,-500.0,0.00027397,120]
[375083657,1753521792873,-500.0,0.00027397,120]
[375083658,1753521792896,-500.0,0.00027397,120]
[375083659,1753521792919,-500.0,0.00027397,120]
[375083660,1753521792942,-383.49038265,0.00027397,120]
[375083661,1753521792969,-247.030338,0.00027397,120]
[375083662,1753521792991,-158.0,0.000274,120]
[375083663,1753521793015,-2087.50744461,0.00027403,120]
[375083664,1753521793037,-824.12735171,0.000275,30]
[375083665,1753521793061,-247.32389979,0.000275,120]
[375083666,1753521793085,-200.0,0.000275,120]
[375083667,1753521793110,-1444.0,0.00027589,120]
[375083668,1753521793134,-500.0,0.00028,30]
[375083669,1753521793171,-320.20267494,0.00028,120]
[375083670,1753521793196,-500.0,0.00028,120]
[375083671,1753521793221,-200.0,0.00028,120]
[375083672,1753521793244,-200.0,0.00028047,120]
[375083673,1753521793271,-200.0,0.00028047,120]
[375083674,1753521793295,-227.48497,0.000282,120]
[375083675,1753521793318,-425.21216,0.000283,120]
[375083676,1753521793343,-376.3705,0.000283,120]
[375083677,1753521793369,-158.0,0.000285,120]
[375083678,1753521793393,-200.0,0.000285,120]
[375083679,1753521793418,-243.25733,0.00029,120]
[375083680,1753521793442,-200.0,0.00029,120]
[375083681,1753521793466,-227.48497,0.000294,120]
[375083682,1753521793490,-425.21216,0.000296,120]
[375083683,1753521793513,-158.0,0.000296,120]
[375083684,1753521793538,-273.35536242,0.0003,120]
[375083685,1753521793562,-500.0,0.0003,120]
[375083686,1753521793587,-894.03839727,0.0003,120]
[375083687,1753521793612,-6140.0,0.0003,60]
[375083688,1753521793637,-312.16666667,0.0003,120]
[375083689,1753521793661,-983.16914,0.000302,120]
[375083690,1753521793685,-227.48497,0.000306,120]
[375083691,1753521793709,-158.0,0.000307,120]
[375083692,1753521793734,-425.21216,0.000309,120]
[375083693,1753521793899,-983.16914,0.00031,120]
[375083694,1753521793924,-231.25662632,0.00031,120]
[375083695,1753521793949,-526.41699184,0.00031,120]
[375083696,1753521793972,-292.08512,0.000312,120]
[375083697,1753521793999,-150.0,0.00031699,30]
[375083698,1753521794021,-983.16914,0.000318,120]
[375083699,1753521794044,-227.48497,0.000318,120]
[375083700,1753521794068,-158.0,0.000318,120]
[375083701,1753521794092,-247.030338,0.00031963,120]
[375083702,1753521794117,-1000.0,0.00032,120]
[375083703,1753521794141,-425.21216,0.000322,120]
[375083704,1753521794165,-652.99192168,0.00032274,120]
[375083705,1753521794189,-200.0,0.000325,120]
[375083706,1753521794212,-983.16914,0.000326,120]
[375083707,1753521794236,-200.0,0.00032681,120]
[375083708,1753521794262,-200.0,0.00032681,120]
[375083709,1753521794285,-322.55386825,0.00032681,120]
[375083710,1753521794310,-1000.0,0.00033,120]
[375083711,1753521794334,-500.0,0.00033,120]
[375083712,1753521794359,-227.48497,0.00033,120]
[375083713,1753521794384,-158.0,0.00033,120]
[375083714,1753521794407,-243.25733,0.000333,120]
[375083715,1753521794432,-292.08512,0.000334,120]
[375083716,1753521794456,-983.16916,0.000334,120]
[375083717,1753521794479,-425.21216,0.000335,120]
[375083718,1753521794502,-200.0,0.00033656,120]
[375083719,1753521794525,-200.0,0.00033656,120]